fUSD/lending_fUSD_20240629
["ID","MTS","AMOUNT","RATE_DAILY","PERIOD"]
[330621220,1719631839603,-155.0,0.0002,2]
[330621221,1719631839614,-2000.0,0.0002,2]
[330621222,1719631839625,-200.0,0.0002,2]
[330621223,1719631839635,-2000.0,0.0002,2]
[330621224,1719631839645,-200.0,0.0002,2]
[330621225,1719631839657,-2000.0,0.0002,2]
[330621226,1719631839666,-200.0,0.0002,2]
[330621227,1719631839676,-319.784,0.00020102,2]
[330621228,1719631839686,-327.07160495,0.00020144,2]
[330621229,1719631839696,-2000.0,0.000202,2]
[330621230,1719631839706,-200.0,0.000202,2]
[330621231,1719631839716,-2000.0,0.000202,2]
[330621232,1719631839726,-200.0,0.000202,2]
[330621233,1719631839737,-152.0,0.00020201,3]
[330621234,1719631839747,-153.15,0.00020206,2]
[330621235,1719631839757,-152.36,0.00020221,2]
[330621236,1719631839766,-1197.953,0.00020338,2]
[330621237,1719631839776,-9565.9691,0.00020338,2]
[330621238,1719631839787,-2000.0,0.00020402,2]
[330621239,1719631839797,-200.0,0.00020402,2]
[330621240,1719631839807,-2000.0,0.00020402,2]
[330621241,1719631839817,-200.0,0.00020402,2]
[330621242,1719631839827,-3844.21004901,0.000205,2]
[330621243,1719631839838,-2255.4285385,0.000205,2]
[330621244,1719631839848,-251.0,0.0002054,2]
[330621245,1719631839858,-303.0,0.0002054,2]
[330621246,1719631839869,-6128.3805,0.000206,2]
[330621247,1719631839879,-225.5876,0.000206,2]
[330621248,1719631839890,-167.4148,0.000206,2]
[330621250,1719631839900,-279.1745,0.000206,2]
[330621252,1719631839910,-400.0,0.000206,7]
[330621254,1719631839920,-2000.0,0.00020606,2]
[330621255,1719631839930,-200.0,0.00020606,2]
[330621256,1719631839940,-2000.0,0.00020606,2]
[330621257,1719631839951,-200.0,0.00020606,2]
[330621258,1719631839962,-19908.2086,0.000207,2]
[330621259,1719631839972,-1000.0,0.000207,2]
[330621260,1719631839983,-1814.5685,0.000207,2]
[330621261,1719631839993,-64188.4478,0.000207,2]
[330621262,1719631840003,-500.0,0.000207,2]
[330621263,1719631840013,-448.0409,0.000207,2]
[330621264,1719631840023,-800.0,0.000207,7]
[330621265,1719631840033,-3844.21004896,0.00020766,2]
[330621266,1719631840043,-2255.42853846,0.00020766,2]
[330621267,1719631840053,-1300.0,0.000208,7]
[330621268,1719631840063,-2000.0,0.00020812,2]
[330621269,1719631840073,-200.0,0.00020812,2]
[330621270,1719631840086,-2000.0,0.00020812,2]
[330621271,1719631840097,-200.0,0.00020812,2]
[330621272,1719631840107,-1700.0,0.000209,7]
[330621273,1719631840117,-385.0914005,0.00020989,2]
[330621274,1719631840127,-152.0,0.00020996,4]
[330621275,1719631840138,-359.65684892,0.00021,2]
[330621276,1719631840148,-502.17063786,0.00021,2]
[330621277,1719631840158,-1250.0,0.00021,2]
[330621278,1719631840168,-1638.2250215,0.00021,2]
[330621279,1719631840178,-7500.0,0.00021,2]
[330621280,1719631840188,-202.955894,0.00021,2]
[330621281,1719631840199,-327.24291454,0.00021,2]
[330621282,1719631840209,-264.83833721,0.00021,2]
[330621283,1719631840219,-3844.21004896,0.00021031,2]
[330621284,1719631840229,-2255.42853846,0.00021031,2]
[330621285,1719631840239,-1000.0,0.0002106,2]
[330621286,1719631840248,-14270.90101391,0.0002108,2]
[330621287,1719631840263,-4481.87958789,0.0002108,2]
[330621288,1719631840273,-153.68,0.0002109,2]
[330621289,1719631840283,-153.68,0.0002109,2]
[330621290,1719631840294,-153.68,0.0002109,2]
[330621291,1719631840304,-153.68,0.0002109,2]
[330621292,1719631840315,-500.0,0.00021099,2]
[330621293,1719631840324,-500.0,0.00021099,2]
[330621294,1719631840334,-543.06382244,0.00021099,2]
[330621295,1719631840581,-500.0,0.00021099,2]
[330621296,1719631840592,-500.0,0.00021099,2]
[330621297,1719631840603,-539.3440648,0.00021099,2]
[330621298,1719631840614,-335.77751142,0.00021099,2]
[330621299,1719631840624,-500.0,0.00021099,2]
[330621300,1719631840635,-500.0,0.00021099,2]
[330621301,1719631840646,-500.0,0.00021099,2]
[330621302,1719631840660,-332.25756732,0.00021099,2]
[330621303,1719631840671,-500.0,0.00021099,2]
[330621304,1719631840682,-300.08136539,0.00021099,2]
[330621305,1719631840692,-500.0,0.00021099,2]
[330621306,1719631840702,-500.0,0.00021099,2]
[330621307,1719631840713,-500.0,0.00021099,2]
[330621308,1719631840723,-232.44168745,0.00021099,2]
[330621309,1719631840733,-641.46040999,0.00021099,2]
[330621310,1719631840743,-500.0,0.00021099,2]
[330621311,1719631840753,-173.46598822,0.00021099,2]
[330621312,1719631840764,-500.0,0.00021099,2]
[330621313,1719631840774,-440.8038956,0.00021099,2]
[330621314,1719631840784,-500.0,0.00021099,2]
[330621315,1719631840797,-500.0,0.00021099,2]
[330621316,1719631840807,-500.0,0.00021099,2]
[330621317,1719631840821,-500.0,0.00021099,2]
[330621318,1719631840831,-500.0,0.00021099,2]
[330621319,1719631840841,-500.0,0.00021099,2]
[330621320,1719631840851,-457392.61735621,0.000211,7]
[330621321,1719631841666,-653.12640008,0.00018919,2]
[330621322,1719631841677,-79333.65119637,0.000211,7]
[330621323,1719631842186,-575.48715525,0.000211,7]
[330621324,1719631842390,-161621.00268234,0.000211,7]
[330621325,1719631842402,-44384.312176,0.000211,7]
[330621326,1719631842413,-34985.82512908,0.000211,7]
[330621335,1719631843720,-205.2034579,0.00021,2]
[330621336,1719631843731,-242685.56265814,0.000211,7]
[330621337,1719631843906,-2083.17277458,0.000211,7]
[330621338,1719631843919,-6034.64831908,0.000211,7]
[330621341,1719631848612,-1749.78,0.000207,2]
[330621342,1719631848623,-97206.100341,0.000211,7]
[330621343,1719631848638,-3221.0121816,0.000211,7]
[330621348,1719632071642,525.46552106,6.94e-05,2]
[330621349,1719632133751,348.46797126,6.94e-05,2]
[330621350,1719632141555,259.55461446,6.94e-05,2]
[330621351,1719632156044,8875.76596075,6.94e-05,2]
[330621352,1719632159213,243.97331211,0.000101,2]
[330621353,1719632195138,18225.59378029,0.0001,2]
[330621354,1719632197758,552.6847755,0.000101,2]
[330621355,1719632231050,4624.27406555,0.000101,2]
[330621356,1719632242049,2526.06256916,0.000101,2]
[330621357,1719632242080,2098.21149639,0.000101,2]
[330621360,1719632255762,150.0,0.000101,2]
[330621361,1719632255787,150.0,0.000101,2]
[330621362,1719632255809,48.46797126,0.000101,2]
[330621364,1719632302254,150.0,0.00011151,2]
[330621365,1719632302277,150.0,0.00011151,2]
[330621366,1719632302301,3.76,0.00011151,2]
[330621367,1719632317153,5000.0,0.00026,120]
[330621368,1719632330310,5000.0,0.00026,120]
[330621369,1719632346107,4624.27406555,0.000101,2]
[330621370,1719632397892,150.0,0.000101,2]
[330621371,1719632397916,150.0,0.000101,2]
[330621372,1719632397937,48.46797126,0.000101,2]
[330621373,1719632445047,4624.27406555,0.000101,2]
[330621374,1719632481315,159.03935982,0.000101,2]
[330621375,1719632565059,4624.27406555,0.000101,2]
[330621376,1719632675075,150.0,0.000101,2]
[330621377,1719632675097,150.0,0.000101,2]
[330621378,1719632675119,150.0,0.000101,2]
[330621379,1719632675141,150.0,0.000101,2]
[330621380,1719632675162,291.78903156,0.000101,2]
[330621381,1719632675187,3732.48503399,0.000101,2]
[330621384,1719632752586,150.0,0.000101,2]
[330621385,1719632752609,150.0,0.000101,2]
[330621386,1719632752632,150.0,0.000101,2]
[330621387,1719632752655,150.0,0.000101,2]
[330621388,1719632752677,150.0,0.000101,2]
[330621389,1719632752702,3874.27406555,0.000101,2]
[330621394,1719632869579,222.8249572,0.00011098,2]
[330621395,1719632871582,4624.27406555,0.000101,2]
[330621396,1719632886589,4624.27406555,0.000101,2]
[330621397,1719632900698,300.75961763,0.00011098,2]
[330621398,1719632930242,750.0,0.00011098,2]
[330621433,1719632982584,4624.27406555,0.00011098,2]
[330621456,1719633031873,-1298.13386906,0.0001251,2]
[330621458,1719633031883,-9130.16040968,0.00013,2]
[330621459,1719633031892,-155.47625538,0.00013128,2]
[330621460,1719633031901,-150.0,0.00013863,2]
[330621461,1719633031910,-25591.54108626,0.0001387,2]
[330621463,1719633031946,-21895.22135349,0.0001387,2]
[330621464,1719633031959,-1000.0,0.000139,2]
[330621465,1719633031969,-820.81383152,0.000139,2]
[330621466,1719633031978,-6637.53018487,0.000139,2]
[330621467,1719633031987,-331.41907944,0.000139,2]
[330621468,1719633031997,-209.98252522,0.000139,2]
[330621469,1719633032006,-202.51752468,0.0001399,2]
[330621470,1719633032016,-8316.83081783,0.00014,2]
[330621471,1719633032028,-65585.30000004,0.00014,2]
[330621472,1719633032041,-1200.0,0.00014,2]
[330621473,1719633032052,-1265.04262178,0.00014,2]
[330621474,1719633032165,-10113.25074618,0.00014,2]
[330621475,1719633032176,-6075.0,0.00014,2]
[330621476,1719633032187,-700.0,0.00014,2]
[330621490,1719633037855,-530.63025645,0.00014,2]
[330621492,1719633037868,-2199.44251202,0.00014,2]
[330621494,1719633037879,-431.381434,0.00014,2]
[330621495,1719633037891,-418.31133617,0.00014,2]
[330621496,1719633037927,-419.6410628,0.00014,2]
[330621497,1719633037945,-622120.83201393,0.00014,2]
[330621498,1719633037960,-75970.89643872,0.00014,2]
[330621499,1719633038179,-1886.88,0.00014,2]
[330621506,1719633040596,-111260.22815077,0.00014,2]
[330621507,1719633040612,-667.34675804,0.00014,2]
[330621508,1719633040624,-1040.02928044,0.00014,2]
[330621509,1719633040653,-8427.38331438,0.00014,2]
[330621510,1719633041412,-268.03773527,0.00014,2]
[330621511,1719633041424,-1408.26225056,0.00014,2]
[330621526,1719633043084,-313.14266693,0.00013452,2]
[330621527,1719633043209,-231.15805262,0.00013452,2]
[330621528,1719633043219,-1392.86008537,0.00013452,2]
[330621604,1719634232300,-300.0,0.00011198,2]
[330621605,1719634232309,-11709.56162535,0.00011199,2]
[330621606,1719634232324,-5656.35932623,0.00011199,2]
[330621607,1719634232374,-979.38,0.00011199,2]
[330621608,1719634232385,-1898.3477175,0.00011199,2]
[330621609,1719634232403,-3394.98990535,0.00011199,2]
[330621610,1719634232429,-1160.470304,0.00011199,2]
[330621611,1719634232438,-731.48320054,0.00011199,2]
[330621612,1719634232458,-9812.24655861,0.00011199,2]
[330621613,1719634232467,-406.38,0.00012129,2]
[330621614,1719634232477,-2115.18727253,0.00013452,2]
[330621615,1719634232486,-200.0,0.000136,4]
[330621616,1719634232495,-500.0,0.000137,5]
[330621617,1719634232504,-1000.0,0.00013786,2]
[330621618,1719634232513,-250.0,0.00013793,2]
[330621619,1719634232523,-700.0,0.000138,5]
[330621620,1719634232533,-155.49616246,0.00013889,2]
[330621621,1719634232543,-150.0,0.00013899,2]
[330621622,1719634232552,-1517.6786,0.000139,2]
[330621623,1719634232562,-27062.30302455,0.000139,2]
[330621637,1719634238149,-530.92308238,0.00013543,2]
[330621638,1719634238159,-316.17856457,0.000139,2]
[330621639,1719634238203,-37252.07641088,0.000139,2]
[330621640,1719634238213,-1607.81034437,0.000139,2]
[330621641,1719634238222,-269.67300913,0.000139,2]
[330621642,1719634238232,-1765.03,0.000139,2]
[330621643,1719634238241,-7615.80177135,0.000139,2]
[330621644,1719634238252,-6895.09649685,0.000139,2]
[330621645,1719634238261,-1000.0,0.000139,5]
[330621646,1719634238271,-246.65273897,0.000139,2]
[330621647,1719634238281,-4300.10529794,0.000139,2]
[330621648,1719634238291,-175.20875585,0.0001399,2]
[330621649,1719634238302,-634.50582798,0.00013998,2]
[330621650,1719634238312,-6713.43078191,0.00014,2]
[330621651,1719634238367,-722.54761118,0.00014,2]
[330621652,1719634238378,-597.24,0.00014,2]
[330621667,1719634240303,-3315.68219168,0.000139,2]
[330621668,1719634240313,-46664.75551416,0.00014,2]
[330621669,1719634240358,-985.38566653,0.00014,2]
[330621670,1719634240416,-48290.07340903,0.00014,2]
[330621671,1719634240473,-44013.2735755,0.00014,2]
[330621672,1719634240486,-4608.46810061,0.00014,2]
[330621673,1719634240530,-646.6434186,0.00014,2]
[330621686,1719634243230,-2697.58549081,0.00014,2]
[330621690,1719634243382,-1164.83372952,0.00014,2]
[330621691,1719634243394,-2295.37133426,0.00014,2]
[330621692,1719634243439,-11862.54061154,0.00014,2]
[330621693,1719634243494,-1334423.84623773,0.00014,2]
[330621703,1719634246231,-1011.6724071,0.00014,2]
[330621704,1719634246674,-1830.2241266,0.00014,2]
[330621705,1719634246687,-2211.876,0.00014,2]
[330621706,1719634246698,-2055.95637963,0.00014,2]
[330621707,1719634246724,-585.22668101,0.00014,2]
[330621708,1719634246753,-983.86902031,0.00014,2]
[330621709,1719634246779,-1450.04333375,0.00014,2]
[330621710,1719634320907,15909.9852,0.00011098,2]
[330621711,1719634939154,292.27590029,0.00011098,2]
[330621712,1719634981051,-1265.0,0.00012287,2]
[330621713,1719634981077,-427.99,0.00012288,2]
[330621714,1719634981099,-7859.54,0.00012944,2]
[330621715,1719634981120,-1106.78,0.00012944,2]
[330621716,1719634981141,-920.59,0.00012998,2]
[330621717,1719634981162,-200.0,0.00013144,2]
[330621718,1719634981184,-220.1,0.00013233,2]
[330621719,1719634983116,-29.9,0.00013233,2]
[330621720,1719634983138,-2141.23,0.00013265,2]
[330621721,1719634983404,-150.0,0.00013291,2]
[330621722,1719634983427,-9678.87,0.00013296,2]
[330621723,1719634983673,-12000.0,0.00013296,2]
[330621725,1719635108718,406.59,0.00011029,2]
[330621727,1719635124888,8211.36046356,0.00011097,2]
[330621738,1719635239259,3394.98990535,0.00011098,2]
[330621743,1719635283144,790.09782135,0.00011098,2]
[330621744,1719635298689,1037.93932126,0.00011098,2]
[330621745,1719635301866,1057.03493964,0.00011098,2]
[330621760,1719635361908,292.44922392,0.00011098,2]
[330621761,1719635363031,205.41504459,0.00011098,2]
[330621762,1719635371216,309.98464011,0.00011098,2]
[330621763,1719635376070,312.41642721,0.00011098,2]
[330621765,1719635400447,2791.42364177,0.00011098,2]
[330621770,1719635431460,-235.70177457,0.00011199,2]
[330621771,1719635431470,-161.19035566,0.00012202,2]
[330621772,1719635431479,-45.80286977,0.00012273,2]
[330621773,1719635431492,-670.78694448,0.00012273,2]
[330621774,1719635431522,-1493.50051534,0.00012273,2]
[330621775,1719635431531,-474.28975858,0.00012302,2]
[330621776,1719635431541,-250.0,0.00012589,2]
[330621777,1719635431550,-345.0,0.0001261,2]
[330621778,1719635431561,-2381.04817862,0.00012616,2]
[330621779,1719635431572,-1313.82624779,0.00012616,2]
[330621780,1719635431596,-389.00967572,0.00012616,2]
[330621781,1719635431607,-588.74678369,0.00012616,2]
[330621782,1719635431618,-2009.17611856,0.00012616,2]
[330621783,1719635431656,-1035.96793328,0.00012616,2]
[330621784,1719635431783,-538.30041497,0.00012616,2]
[330621785,1719635431794,-2579.13024288,0.00012616,2]
[330621786,1719635431809,-13064.79440449,0.00012616,2]
[330621787,1719635431819,-1841.98,0.00012687,2]
[330621788,1719635431828,-3651.61,0.00012688,2]
[330621789,1719635431837,-800.0,0.00012838,2]
[330621790,1719635431847,-329.0,0.0001298,2]
[330621791,1719635431856,-170.36,0.00013021,2]
[330621792,1719635431865,-7619.19,0.00013021,2]
[330621793,1719635431874,-161.19035565,0.00013051,2]
[330621794,1719635431883,-178.61,0.00013094,2]
[330621795,1719635431892,-155.0,0.00013128,2]
[330621796,1719635431901,-170.36,0.00013134,2]
[330621797,1719635431910,-250.0,0.0001314,2]
[330621798,1719635431919,-8396.96,0.00013203,2]
[330621799,1719635431929,-170.36,0.00013247,2]
[330621800,1719635431938,-406.59,0.00013293,2]
[330621801,1719635431947,-170.36,0.0001336,2]
[330621802,1719635431956,-684.35506936,0.00013452,2]
[330621803,1719635431966,-19606.28873825,0.00013452,2]
[330621804,1719635431975,-155.0,0.00013472,2]
[330621805,1719635431984,-170.36,0.00013473,2]
[330621806,1719635431994,-260.43057533,0.00013543,2]
[330621807,1719635432004,-170.36,0.00013586,2]
[330621808,1719635432014,-2654.82,0.00013699,2]
[330621809,1719635432024,-4935.99,0.00013699,2]
[330621810,1719635432034,-199.11,0.00013699,2]
[330621811,1719635432044,-682.42,0.00013699,2]
[330621812,1719635432054,-200.0,0.00013699,2]
[330621813,1719635432065,-10000.0,0.00013699,2]
[330621814,1719635432077,-1017.57,0.00013699,2]
[330621815,1719635432086,-170.36,0.000137,2]
[330621816,1719635432099,-29631.0,0.00013721,2]
[330621817,1719635432109,-586.33207861,0.00013759,2]
[330621818,1719635432119,-529.02288661,0.00013759,2]
[330621819,1719635432129,-3960.7565,0.0001376,2]
[330621820,1719635432140,-184.74,0.00013812,2]
[330621821,1719635432150,-200.0,0.00013826,2]
[330621822,1719635432159,-1487.36769,0.0001386,2]
[330621823,1719635432168,-663.13643836,0.00013899,2]
[330621824,1719635432177,-161.19035565,0.00013899,2]
[330621825,1719635432186,-6945.87141052,0.00013899,2]
[330621826,1719635432195,-7980.77808954,0.00013899,2]
[330621827,1719635432206,-326.9989924,0.00013899,2]
[330621828,1719635432216,-713.53527772,0.00013899,2]
[330621829,1719635432225,-155.94167811,0.000139,2]
[330621830,1719635432234,-215.73840732,0.000139,2]
[330621831,1719635432244,-1601.08489972,0.000139,2]
[330621832,1719635432254,-208.237839,0.00013973,2]
[330621833,1719635432263,-104197.5171937,0.00013989,2]
[330621834,1719635432275,-42519.79628415,0.00013999,2]
[330621835,1719635432389,-5.16798985,0.00013999,2]
[330621863,1719635437807,-266.23707899,0.00013899,2]
[330621864,1719635437816,-20313.42260584,0.00013999,2]
[330621865,1719635437828,-302.52178472,0.00013999,2]
[330621866,1719635437840,-1242.44162706,0.00013999,2]
[330621867,1719635437852,-338.58883752,0.00013999,2]
[330621868,1719635437884,-616.0,0.00013999,2]
[330621869,1719635437895,-959.26636,0.00013999,2]
[330621870,1719635437906,-1063.71192717,0.00013999,2]
[330621871,1719635437918,-280.65263567,0.00013999,2]
[330621872,1719635437930,-611.69496178,0.00013999,2]
[330621873,1719635437950,-1520.60108001,0.00013999,2]
[330621874,1719635437961,-5098.26030405,0.00013999,2]
[330621875,1719635437985,-13425.46661546,0.00013999,2]
[330621876,1719635437997,-118593.2539394,0.00013999,2]
[330621877,1719635438028,-35792.07879984,0.00013999,2]
[330621881,1719635439534,-3528.84120623,0.00013999,2]
[330621882,1719635439674,-1048.582763,0.00013999,2]
[330621883,1719635439690,-384.644286,0.00013999,2]
[330621884,1719635439702,-304.184176,0.00013999,2]
[330621885,1719635439727,-33625.82427313,0.00013999,2]
[330621886,1719635439740,-38831.90504504,0.00013999,2]
[330621887,1719635439752,-45796.80648819,0.00013999,2]
[330621888,1719635439767,-20745.12160363,0.00013999,2]
[330621889,1719635439791,-527.39556223,0.00013999,2]
[330621890,1719635439845,-468.39336769,0.00013999,2]
[330621891,1719635439858,-1804.04620288,0.00013999,2]
[330621892,1719635439876,-1044.41125302,0.00013999,2]
[330621893,1719635439888,-1300.47673645,0.00013999,2]
[330621894,1719635439973,-17774.15880692,0.00013999,2]
[330621903,1719635442756,-2346.56821611,0.00013999,2]
[330621904,1719635442767,-885.5554466,0.00013999,2]
[330621905,1719635442783,-298.93134934,0.00013999,2]
[330621906,1719635442813,-134522.78275835,0.00013999,2]
[330621907,1719635442822,-155.0,0.00013999,2]
[330621908,1719635442832,-137130.35365108,0.00014,2]
[330621909,1719635442843,-627.546,0.00014,2]
[330621910,1719635442859,-1113.8701207,0.00014,2]
[330621911,1719635442870,-3874.6951572,0.00014,2]
[330621940,1719635445661,-266.23707899,0.00013899,2]
[330621942,1719635445671,-31592.24225701,0.00014,2]
[330621948,1719635445787,-12158.90693104,0.00014,2]
[330621949,1719635468136,14827.0,0.00025999,120]
[330621953,1719635635951,9019.63239359,0.00011097,2]
[330621954,1719635702560,-690.10215601,0.00011197,2]
[330621955,1719635702587,-520.64721014,0.00011199,2]
[330621956,1719635702615,-407.43,0.00011328,2]
[330621960,1719635831071,348.79060576,0.00011098,2]
[330621961,1719635867910,440.83610235,0.00011098,2]
[330621962,1719635876851,155.0,0.00011098,2]
[330621963,1719635886002,155.0,0.00011098,2]
[330621964,1719635895089,167.29687202,0.00011098,2]
[330621965,1719635896772,4042.57994754,0.00011098,2]
[330621966,1719635901261,4624.27406555,0.00011098,2]
[330621967,1719635907883,19817.23601912,0.00011098,2]
[330621968,1719635921256,4624.27406555,0.00011098,2]
[330621969,1719635965015,155.0,0.00011098,2]
[330621970,1719635983861,206.99808607,0.00011098,2]
[330621971,1719635998887,19817.23601912,0.00011098,2]
[330621972,1719636047467,2385.46124002,0.00011098,2]
[330621973,1719636051515,167.20937687,0.00011098,2]
[330621974,1719636065090,552.51494431,0.00011098,2]
[330621975,1719636075685,181.09928912,0.00011098,2]
[330621976,1719636091923,19817.23601912,0.00011098,2]
[330621977,1719636105642,181.09928912,0.00011098,2]
[330621978,1719636173523,155.0,0.00011098,2]
[330621979,1719636183907,19817.23601912,0.00011098,2]
[330621980,1719636196832,413.55,0.00010878,2]
[330621981,1719636230039,332.01755418,0.00011098,2]
[330621982,1719636248534,296.20448438,0.00011098,2]
[330621984,1719636270959,19817.23601912,0.00011098,2]
[330621986,1719636342817,190.50189593,0.00011098,2]
[330621989,1719636369833,1317.57495207,0.00011098,2]
[330621997,1719636465763,-10000.0,0.00012586,2]
[330621998,1719636466884,-1251.85328804,0.00011197,2]
[330621999,1719636466907,-8748.14671196,0.00012586,2]
[330622000,1719636467619,-5151.85328804,0.00012586,2]
[330622001,1719636467645,-250.0,0.0001263,2]
[330622002,1719636467666,-159.26174028,0.00012657,2]
[330622003,1719636467687,-150.0,0.00012706,2]
[330622004,1719636467709,-1162.9,0.00012738,2]
[330622005,1719636467731,-929.18,0.00012757,2]
[330622006,1719636467758,-221.88,0.00012808,2]
[330622007,1719636467779,-1974.92497168,0.00012808,2]
[330622048,1719636631738,-300.0,0.00012807,2]
[330622050,1719636631748,-511.01502832,0.00012808,2]
[330622052,1719636631763,-10643.37229356,0.00012808,2]
[330622054,1719636631774,-5973.18862995,0.00012808,2]
[330622056,1719636631786,-1671.1711544,0.00012808,2]
[330622057,1719636631828,-628.42,0.00012808,2]
[330622058,1719636631850,-1394.16643109,0.00012808,2]
[330622059,1719636631861,-300.84495689,0.00012808,2]
[330622060,1719636631871,-200.67782117,0.00012808,2]
[330622061,1719636631881,-301.53919183,0.00012808,2]
[330622062,1719636631891,-1000.0,0.00012811,2]
[330622063,1719636631902,-250.0,0.00012859,2]
[330622064,1719636631912,-413.55,0.00013142,2]
[330622065,1719636631923,-168.87,0.00013174,2]
[330622066,1719636631932,-725.42,0.00013174,2]
[330622067,1719636631942,-13406.82833332,0.0001318,2]
[330622068,1719636631955,-29560.56631577,0.0001318,2]
[330622069,1719636631967,-180820.84672803,0.0001318,2]
[330622070,1719636631979,-24675.14347884,0.0001318,2]
[330622071,1719636632104,-7343.88972904,0.0001318,2]
[330622072,1719636632136,-446.45853724,0.0001318,2]
[330622073,1719636632149,-2695.04311048,0.0001318,2]
[330622074,1719636632170,-796.74293585,0.0001318,2]
[330622075,1719636632187,-562.43544538,0.0001318,2]
[330622076,1719636632199,-1094.89027509,0.0001318,2]
[330622077,1719636632211,-351.89855854,0.0001318,2]
[330622078,1719636632223,-367.40797745,0.0001318,2]
[330622083,1719636637661,-1587.81759761,0.0001318,2]
[330622085,1719636637749,-638.55963103,0.0001318,2]
[330622086,1719636637854,-514.78208379,0.0001318,2]
[330622087,1719636637916,-149064.68926254,0.0001318,2]
[330622088,1719636637925,-624.34336797,0.00013352,2]
[330622089,1719636637935,-329.05798067,0.00013416,2]
[330622090,1719636637944,-5547.55,0.00013416,2]
[330622091,1719636637954,-13236.75,0.00013452,2]
[330622092,1719636637964,-1011.64476456,0.00013583,2]
[330622093,1719636637973,-200.0,0.000136,4]
[330622094,1719636637983,-150.0,0.00013698,2]
[330622095,1719636637993,-199.11,0.00013699,2]
[330622096,1719636638002,-1500.0,0.00013699,5]
[330622097,1719636638014,-200.0,0.00013699,2]
[330622098,1719636638023,-1461.56,0.00013699,2]
[330622099,1719636638033,-722.19,0.00013699,2]
[330622100,1719636638043,-500.0,0.000137,5]
[330622101,1719636638052,-292.27590029,0.00013759,2]
[330622102,1719636638066,-150.0,0.00013768,2]
[330622103,1719636638075,-6547.39809485,0.00013799,2]
[330622104,1719636638085,-800.0,0.000138,5]
[330622106,1719636638094,-224.95,0.00013808,3]
[330622108,1719636638106,-150.0,0.00013826,2]
[330622110,1719636638115,-1239.47307,0.0001386,2]
[330622112,1719636638124,-232.68818604,0.00013889,2]
[330622115,1719636638135,-5295.52283162,0.00013899,2]
[330622124,1719636638195,-612.18240239,0.00013899,2]
[330622128,1719636638367,-1029.33834057,0.00013899,2]
[330622130,1719636639855,-728.1,0.00013899,2]
[330622131,1719636639867,-560.92338755,0.00013899,2]
[330622132,1719636639949,-79239.53713787,0.00013899,2]
[330622133,1719636639959,-530.50915068,0.00013899,2]
[330622134,1719636639969,-213.57300496,0.00013899,2]
[330622135,1719636639978,-530.50915066,0.00013899,2]
[330622136,1719636639988,-530.50915066,0.000139,2]
[330622137,1719636639997,-213.57300496,0.000139,2]
[330622138,1719636640007,-296.097713,0.000139,2]
[330622139,1719636640017,-530.50915066,0.000139,2]
[330622140,1719636640027,-172.59072584,0.000139,2]
[330622141,1719636640038,-1584.31501283,0.000139,2]
[330622142,1719636640047,-530.50915066,0.000139,2]
[330622143,1719636640056,-1100.0,0.000139,5]
[330622144,1719636640072,-2866.73686528,0.000139,2]
[330622145,1719636640081,-213.57300496,0.000139,2]
[330622146,1719636640091,-164.4351593,0.000139,2]
[330622147,1719636640100,-150.0,0.00013957,2]
[330622148,1719636640110,-187.414055,0.00013973,2]
[330622149,1719636640119,-181.50684928,0.00013979,2]
[330622150,1719636640129,-80703.9243649,0.00013989,2]
[330622151,1719636640139,-4769.4994031,0.00013989,2]
[330622152,1719636640150,-11420.4760068,0.00013989,2]
[330622153,1719636640160,-181.50684928,0.0001399,2]
[330622154,1719636640169,-1003.2533,0.00013998,2]
[330622155,1719636640179,-1760.07346457,0.00013999,2]